fUSD/lending_fUSD_20250916
["ID","MTS","AMOUNT","RATE_DAILY","PERIOD"]
[385846843,1758059515883,-722.71,0.00032602,6]
[385846844,1758059515892,-400.0,0.00032602,6]
[385846845,1758059515901,-656.3,0.00032602,6]
[385846846,1758059515910,-400.0,0.00032602,6]
[385846847,1758059515919,-1790.44,0.00032602,6]
[385846848,1758059515928,-400.0,0.00032602,6]
[385846849,1758059515937,-400.0,0.00032602,6]
[385846850,1758059515946,-400.0,0.00032602,6]
[385846851,1758059515955,-1382.16,0.00032602,6]
[385846852,1758059515964,-400.0,0.00032602,6]
[385846853,1758059515973,-429.26,0.00032602,6]
[385846854,1758059515982,-1005.55,0.00032602,6]
[385846855,1758059515991,-400.0,0.00032602,6]
[385846856,1758059516001,-400.0,0.00032602,6]
[385846857,1758059516010,-400.0,0.00032602,6]
[385846858,1758059516019,-400.0,0.00032602,6]
[385846859,1758059516028,-400.0,0.00032602,6]
[385846860,1758059516037,-400.0,0.00032602,6]
[385846861,1758059516046,-400.0,0.00032602,6]
[385846862,1758059516055,-400.0,0.00032602,6]
[385846863,1758059516064,-400.0,0.00032602,6]
[385846864,1758059516074,-690.12,0.00032602,6]
[385846865,1758059516083,-400.0,0.00032602,6]
[385846866,1758059516092,-607.8,0.00032602,6]
[385846867,1758059516101,-671.41,0.00032602,6]
[385846868,1758059516111,-400.0,0.00032602,6]
[385846869,1758059516120,-1101.76,0.00032602,6]
[385846870,1758059516129,-644.78,0.00032602,6]
[385846871,1758059516139,-400.0,0.00032602,6]
[385846872,1758059516148,-400.0,0.00032602,6]
[385846873,1758059516157,-199.98118753,0.00032602,6]
[385846874,1758059516166,-400.0,0.00032602,6]
[385846875,1758059516175,-783.19,0.00032602,6]
[385846876,1758059516184,-400.0,0.00032602,6]
[385846877,1758059516193,-400.0,0.00032602,6]
[385846878,1758059516202,-400.0,0.00032602,6]
[385846879,1758059516212,-537.068148,0.00032602,6]
[385846880,1758059516221,-467.3,0.00032602,6]
[385846881,1758059516231,-400.0,0.00032602,6]
[385846882,1758059516240,-450.16,0.00032602,6]
[385846883,1758059516252,-400.0,0.00032602,6]
[385846884,1758059516261,-400.0,0.00032602,6]
[385846885,1758059516271,-400.0,0.00032602,6]
[385846886,1758059516280,-400.0,0.00032602,6]
[385846887,1758059516290,-400.0,0.00032602,6]
[385846888,1758059516300,-1181.9,0.00032602,6]
[385846889,1758059516309,-400.0,0.00032602,6]
[385846890,1758059516318,-431.77,0.00032602,6]
[385846891,1758059516328,-400.0,0.00032602,6]
[385846892,1758059516337,-400.0,0.00032602,6]
[385846893,1758059516347,-1421.99,0.00032602,6]
[385846894,1758059516356,-604.53,0.00032602,6]
[385846895,1758059516366,-400.0,0.00032602,6]
[385846896,1758059516375,-417.22,0.00032602,6]
[385846897,1758059516385,-633.44,0.00032602,6]
[385846898,1758059516395,-400.0,0.00032602,6]
[385846899,1758059516407,-400.0,0.00032602,6]
[385846900,1758059516416,-400.0,0.00032602,6]
[385846901,1758059516426,-400.0,0.00032602,6]
[385846902,1758059516435,-400.0,0.00032664,6]
[385846903,1758059516446,-400.0,0.00032664,6]
[385846904,1758059516455,-892.92,0.00032664,6]
[385846905,1758059516464,-400.0,0.00032664,6]
[385846906,1758059516475,-568.06,0.00032664,6]
[385846907,1758059516484,-1072.67,0.00032664,6]
[385846908,1758059516493,-512.55,0.00032664,6]
[385846909,1758059516503,-774.02,0.00032664,5]
[385846910,1758059516512,-400.0,0.00032664,6]
[385846911,1758059516522,-400.0,0.00032664,6]
[385846912,1758059516531,-15084.844287,0.00032756,2]
[385846913,1758059516541,-35150.32,0.000328,7]
[385846914,1758059516551,-2058.39,0.00032837,6]
[385846915,1758059516560,-400.0,0.00032837,6]
[385846916,1758059516569,-412.53,0.00032837,6]
[385846917,1758059516579,-618.61,0.00032837,6]
[385846918,1758059516589,-1651.68,0.00032837,6]
[385846919,1758059516598,-2717.2,0.00032837,6]
[385846920,1758059516607,-400.0,0.00032837,6]
[385846921,1758059516617,-462.71,0.00032837,6]
[385846922,1758059516626,-400.0,0.00032837,6]
[385846923,1758059516636,-400.0,0.00032837,6]
[385846924,1758059516645,-400.0,0.00032837,6]
[385846925,1758059516654,-400.0,0.00032837,6]
[385846926,1758059516663,-3231.76,0.00032837,6]
[385846927,1758059516672,-400.0,0.00032837,6]
[385846928,1758059516681,-436.89,0.00032837,6]
[385846929,1758059516693,-400.0,0.00032837,6]
[385846930,1758059516702,-485.67,0.00032874,6]
[385846931,1758059516711,-400.0,0.00032874,6]
[385846932,1758059516720,-467.8,0.00032874,6]
[385846933,1758059516730,-400.0,0.00032874,6]
[385846934,1758059516739,-400.0,0.00032875,6]
[385846935,1758059516748,-400.0,0.00032875,6]
[385846936,1758059516757,-467.83,0.00032875,6]
[385846937,1758059516766,-400.0,0.00032875,6]
[385846938,1758059516776,-400.0,0.00032875,6]
[385846939,1758059516785,-406.41267169,0.00032875,6]
[385846940,1758059516794,-400.0,0.00032875,6]
[385846941,1758059516803,-493.19601452,0.00032875,6]
[385846942,1758059516812,-400.0,0.00032875,6]
[385846943,1758059516822,-400.0,0.00032875,6]
[385846944,1758059516831,-400.0,0.00032875,6]
[385846945,1758059516840,-406.56219086,0.00032875,6]
[385846946,1758059516849,-400.0,0.00032875,6]
[385846947,1758059516858,-453.02,0.00032875,6]
[385846948,1758059516867,-893.66,0.00032875,6]
[385846949,1758059516876,-436.00651345,0.00032875,6]
[385846950,1758059516886,-400.0,0.00032875,6]
[385846951,1758059516894,-400.0,0.00032875,6]
[385846952,1758059516904,-400.0,0.00032875,6]
[385846953,1758059516913,-400.0,0.00032875,6]
[385846954,1758059516923,-400.0,0.00032875,6]
[385846955,1758059516932,-400.0,0.00032875,6]
[385846956,1758059516941,-400.0,0.00032875,6]
[385846957,1758059516950,-400.0,0.00032875,6]
[385846958,1758059516959,-404.97,0.00032875,6]
[385846959,1758059516969,-431.58,0.00032875,6]
[385846960,1758059516978,-564.94,0.00032875,6]
[385846961,1758059516987,-400.0,0.00032875,6]
[385846962,1758059516996,-475.93,0.00032875,6]
[385846963,1758059517006,-646.81,0.00032875,6]
[385846964,1758059517015,-400.0,0.00032875,6]
[385846965,1758059517024,-400.0,0.00032875,6]
[385846966,1758059517034,-503.49,0.00032875,6]
[385846967,1758059517043,-555.18,0.00032875,6]
[385846968,1758059517052,-493.67,0.00032875,6]
[385846969,1758059517061,-406.48,0.00032875,6]
[385846970,1758059517070,-400.0,0.00032875,6]
[385846971,1758059517080,-472.57,0.00032875,6]
[385846972,1758059517090,-566.4,0.00032875,6]
[385846973,1758059517099,-443.11,0.00032875,6]
[385846974,1758059517108,-556.41,0.00032875,6]
[385846975,1758059517118,-642.62,0.00032875,6]
[385846976,1758059517127,-526.48,0.00032875,6]
[385846977,1758059517136,-638.73,0.00032875,6]
[385846978,1758059517146,-400.0,0.00032875,6]
[385846979,1758059517155,-400.0,0.00032875,6]
[385846980,1758059517165,-514.99,0.00032875,6]
[385846981,1758059517174,-477.56,0.00032875,6]
[385846982,1758059517184,-400.0,0.00032875,6]
[385846983,1758059517193,-419.16819515,0.00032875,6]
[385846984,1758059517202,-824.84,0.00032875,6]
[385846985,1758059517212,-558.91,0.00032875,6]
[385846986,1758059517223,-429.04,0.00032875,6]
[385846987,1758059517232,-771.88,0.00032875,6]
[385846988,1758059517241,-400.0,0.00032875,6]
[385846989,1758059517250,-456.11,0.00032875,6]
[385846990,1758059517260,-382.33108008,0.00032875,6]
[385846991,1758059517269,-422.65,0.00032875,6]
[385846992,1758059517279,-400.0,0.00032875,6]
[385846993,1758059517288,-400.0,0.00032875,6]
[385846994,1758059517298,-400.0,0.00032875,6]
[385846995,1758059517307,-400.0,0.00032875,6]
[385846996,1758059517316,-400.0,0.00032875,6]
[385846997,1758059517326,-682.71,0.00032875,6]
[385846998,1758059517336,-792.25,0.00032875,6]
[385846999,1758059517346,-1411.58,0.00032875,6]
[385847000,1758059517356,-678.71,0.00032875,6]
[385847001,1758059517366,-876.88,0.00032875,6]
[385847002,1758059517375,-922.72,0.00032875,6]
[385847003,1758059517385,-590.13,0.00032875,6]
[385847004,1758059517396,-400.0,0.00032875,6]
[385847005,1758059517407,-684.03,0.00032875,2]
[385847006,1758059517417,-741.55,0.00032875,6]
[385847007,1758059517427,-400.0,0.00032875,6]
[385847008,1758059517436,-400.0,0.00032875,6]
[385847009,1758059517446,-400.0,0.00032875,6]
[385847010,1758059517456,-923.03,0.00032875,6]
[385847011,1758059517465,-590.27,0.00032875,6]
[385847012,1758059517477,-400.0,0.00032876,6]
[385847013,1758059517487,-400.0,0.00032876,6]
[385847014,1758059517497,-252.10121171,0.00032876,6]
[385847015,1758059517507,-400.0,0.00032876,6]
[385847016,1758059517517,-400.0,0.00032876,6]
[385847017,1758059517527,-400.0,0.00032876,6]
[385847018,1758059517536,-400.0,0.00032876,6]
[385847019,1758059517546,-400.0,0.00032876,6]
[385847020,1758059517556,-400.0,0.00032876,6]
[385847021,1758059517565,-400.0,0.00032876,6]
[385847022,1758059517574,-446.83,0.00032876,6]
[385847023,1758059517584,-400.0,0.00032876,6]
[385847024,1758059517593,-400.0,0.00032876,6]
[385847025,1758059517602,-400.0,0.00032876,6]
[385847026,1758059517612,-547.28,0.00032876,6]
[385847027,1758059517622,-400.0,0.00032876,6]
[385847028,1758059517631,-400.0,0.00032876,6]
[385847029,1758059517641,-400.0,0.00032876,6]
[385847030,1758059517650,-400.0,0.00032876,6]
[385847031,1758059517660,-432.2210147,0.00032876,6]
[385847032,1758059517671,-400.0,0.00032876,6]
[385847033,1758059517681,-400.0,0.00032876,6]
[385847034,1758059517690,-478.9494988,0.00032876,6]
[385847035,1758059517700,-400.0,0.00032876,6]
[385847036,1758059517710,-400.0,0.00032876,6]
[385847037,1758059517720,-400.0,0.00032876,6]
[385847038,1758059517729,-404.16,0.00032876,6]
[385847039,1758059517739,-400.0,0.00032876,6]
[385847040,1758059517749,-528.17,0.00032876,6]
[385847041,1758059517758,-542.9,0.00032876,6]
[385847042,1758059517767,-423.9,0.00032876,6]
[385847043,1758059517777,-400.0,0.00032876,6]
[385847044,1758059517786,-854.5,0.00032876,6]
[385847045,1758059517796,-403.43,0.00032876,6]
[385847046,1758059517805,-400.0,0.00032876,6]
[385847047,1758059517815,-400.0,0.00032876,6]
[385847048,1758059517826,-400.0,0.00032876,6]
[385847049,1758059517835,-400.0,0.00032876,6]
[385847050,1758059517846,-400.0,0.00032876,6]
[385847051,1758059517856,-400.0,0.00032876,6]
[385847052,1758059517866,-400.0,0.00032876,6]
[385847053,1758059517876,-400.0,0.00032876,6]
[385847054,1758059517887,-400.0,0.00032876,6]
[385847055,1758059517897,-400.0,0.00032876,6]
[385847056,1758059517909,-400.0,0.00032876,6]
[385847057,1758059517921,-400.0,0.00032876,6]
[385847058,1758059517934,-425.79,0.00032876,6]
[385847059,1758059517944,-400.0,0.00032876,6]
[385847060,1758059517956,-440.62,0.00032876,6]
[385847061,1758059517967,-172.90277823,0.00032876,6]
[385847062,1758059517977,-414.84996507,0.00032876,6]
[385847063,1758059517987,-627.06,0.00032876,6]
[385847064,1758059517996,-400.0,0.00032876,6]
[385847065,1758059518006,-400.0,0.00032876,6]
[385847066,1758059518016,-260.33035843,0.00032876,6]
[385847067,1758059518025,-404.88,0.00032876,6]
[385847068,1758059518035,-400.0,0.00032876,6]
[385847069,1758059518046,-400.0,0.00032876,6]
[385847070,1758059518056,-597.91,0.00032876,6]
[385847071,1758059518066,-550.75,0.00032876,6]
[385847072,1758059518077,-482.27,0.00032876,6]
[385847073,1758059518086,-400.0,0.00032876,6]
[385847074,1758059518098,-400.0,0.00032876,6]
[385847075,1758059518107,-400.0,0.00032876,6]
[385847076,1758059518117,-489.33,0.00032876,6]
[385847077,1758059518127,-400.0,0.00032876,6]
[385847078,1758059518137,-400.0,0.00032876,6]
[385847079,1758059518147,-400.44,0.00032876,6]
[385847080,1758059518157,-432.89,0.00032876,6]
[385847081,1758059518167,-1630.47,0.00032876,6]
[385847082,1758059518177,-400.0,0.00032876,6]
[385847083,1758059518186,-400.0,0.00032876,6]
[385847084,1758059518196,-464.0,0.00032876,6]
[385847085,1758059518206,-541.51,0.00032876,6]
[385847086,1758059518215,-400.0,0.00032876,120]
[385847087,1758059518431,-400.0,0.00032876,120]
[385847088,1758059518450,-400.0,0.00032876,120]
[385847089,1758059518459,-400.0,0.00032876,120]
[385847090,1758059518470,-400.0,0.00032876,120]
[385847091,1758059518481,-400.0,0.00032876,120]
[385847092,1758059518491,-400.0,0.00032876,120]
[385847093,1758059518501,-183.60693398,0.00032876,6]
[385847094,1758059518510,-400.0,0.00032876,120]
[385847095,1758059518520,-400.0,0.00032876,120]
[385847096,1758059518529,-400.0,0.00032876,120]
[385847097,1758059518538,-400.0,0.00032876,120]
[385847098,1758059518548,-400.0,0.00032876,6]
[385847099,1758059518557,-400.0,0.00032876,6]
[385847100,1758059518566,-431.13,0.00032876,6]
[385847101,1758059518576,-400.0,0.00032876,6]
[385847102,1758059518586,-400.0,0.00032876,6]
[385847103,1758059518595,-666.3,0.00032876,6]
[385847104,1758059518604,-400.0,0.00032876,6]
[385847105,1758059518613,-400.0,0.00032876,6]
[385847106,1758059518623,-547.93,0.00032876,6]
[385847107,1758059518632,-472.29,0.00032876,6]
[385847108,1758059518641,-400.0,0.00032876,6]
[385847109,1758059518651,-474.55,0.00032876,6]
[385847110,1758059518660,-681.13,0.00032876,6]
[385847111,1758059518669,-445.76,0.00032876,6]
[385847112,1758059518678,-400.0,0.00032876,6]
[385847113,1758059518687,-400.0,0.00032876,6]
[385847114,1758059518697,-520.69,0.00032876,6]
[385847115,1758059518706,-400.0,0.00032876,6]
[385847116,1758059518715,-402.9,0.00032876,6]
[385847117,1758059518725,-400.0,0.00032876,6]
[385847118,1758059518735,-400.0,0.00032876,6]
[385847119,1758059518744,-400.0,0.00032876,6]
[385847120,1758059518753,-400.0,0.00032876,6]
[385847121,1758059518762,-400.0,0.00032876,6]
[385847122,1758059518772,-400.0,0.00032876,6]
[385847123,1758059518782,-400.0,0.00032876,6]
[385847124,1758059518791,-438.72,0.00032876,6]
[385847125,1758059518800,-520.75,0.00032876,6]
[385847126,1758059518809,-930.22,0.00032876,6]
[385847127,1758059518819,-400.0,0.00032876,6]
[385847128,1758059518827,-400.0,0.00032876,6]
[385847129,1758059518837,-691.69,0.00032876,6]
[385847130,1758059518847,-541.46,0.00032876,6]
[385847131,1758059518856,-400.0,0.00032876,6]
[385847132,1758059518866,-840.93,0.00032876,6]
[385847133,1758059518875,-400.0,0.00032876,6]
[385847134,1758059518885,-531.61,0.00032876,6]
[385847135,1758059518894,-400.0,0.00032876,6]
[385847136,1758059518903,-400.0,0.00032876,6]
[385847137,1758059518912,-400.0,0.00032876,6]
[385847138,1758059518922,-528.41,0.00032876,6]
[385847139,1758059518931,-400.0,0.00032876,6]
[385847140,1758059518940,-3105.74,0.00032876,6]
[385847141,1758059518949,-400.0,0.00032876,6]
[385847142,1758059518958,-593.33,0.00032876,6]
[385847143,1758059518967,-530.57,0.00032876,6]
[385847144,1758059518977,-400.0,0.00032876,6]
[385847145,1758059518986,-400.0,0.00032876,6]
[385847146,1758059518995,-801.13,0.00032876,6]
[385847147,1758059519005,-400.0,0.00032876,6]
[385847148,1758059519014,-400.0,0.00032876,6]
[385847149,1758059519023,-400.0,0.00032876,6]
[385847150,1758059519032,-303.11483868,0.00032876,6]
[385847151,1758059519041,-400.0,0.00032876,6]
[385847152,1758059519051,-400.0,0.00032876,6]
[385847153,1758059519060,-720.72,0.00032876,6]
[385847154,1758059519069,-400.0,0.00032876,6]
[385847155,1758059519079,-450.36,0.00032876,6]
[385847156,1758059519088,-488.74352675,0.00032876,6]
[385847157,1758059519098,-400.0,0.00032876,6]
[385847158,1758059519107,-400.0,0.00032876,6]
[385847159,1758059519117,-400.0,0.00032876,6]
[385847160,1758059519127,-400.0,0.00032876,6]
[385847161,1758059519136,-440.57236888,0.00032876,6]
[385847162,1758059519145,-455.66,0.00032876,6]
[385847163,1758059519155,-400.0,0.00032876,6]
[385847164,1758059519164,-400.0,0.00032876,6]
[385847165,1758059519173,-400.0,0.00032876,6]
[385847166,1758059519184,-210.69276593,0.00032876,6]
[385847167,1758059519195,-452.15,0.00032876,6]
[385847168,1758059519206,-400.0,0.00032876,6]
[385847169,1758059519216,-599.86,0.00032876,6]
[385847170,1758059519227,-1299.74,0.00032876,6]
[385847171,1758059519239,-572.67,0.00032876,6]
[385847172,1758059519250,-400.0,0.00032876,6]
[385847173,1758059519260,-400.0,0.00032876,6]
[385847174,1758059519270,-422.38,0.00032876,6]
[385847175,1758059519279,-400.0,0.00032876,6]
[385847176,1758059519289,-400.0,0.00032876,6]
[385847177,1758059519299,-404.16,0.00032876,6]
[385847178,1758059519308,-400.0,0.00032876,6]
[385847179,1758059519318,-400.0,0.00032876,6]
[385847180,1758059519327,-400.0,0.00032876,6]
[385847181,1758059519337,-400.0,0.00032876,6]
[385847182,1758059519346,-924.76,0.00032876,6]
[385847183,1758059519357,-400.0,0.00032876,6]
[385847184,1758059519367,-1289.24,0.00032876,6]
[385847185,1758059519377,-464.00932018,0.00032876,6]
[385847186,1758059519387,-478.81835592,0.00032876,6]
[385847187,1758059519400,-400.0,0.00032876,6]
[385847188,1758059519411,-400.0,0.00032876,6]
[385847189,1758059519420,-554.69,0.00032876,6]
[385847190,1758059519431,-400.0,0.00032876,6]
[385847191,1758059519443,-799.13,0.00032876,6]
[385847192,1758059519454,-467.79,0.00032876,6]
[385847193,1758059519464,-943.71,0.00032876,6]
[385847194,1758059519475,-400.0,0.00032876,6]
[385847195,1758059519485,-400.0,0.00032876,6]
[385847196,1758059519498,-617.84,0.00032876,6]
[385847197,1758059519507,-562.81,0.00032876,6]
[385847198,1758059519517,-1554.92,0.00032876,6]
[385847199,1758059519526,-472.52,0.00032876,6]
[385847200,1758059519536,-400.0,0.00032876,6]
[385847201,1758059519546,-502.44,0.00032876,6]
[385847202,1758059519555,-400.0,0.00032876,6]
[385847203,1758059519566,-2454.26,0.00032876,6]
[385847204,1758059519575,-400.0,0.00032876,6]
[385847205,1758059519585,-371.27643678,0.00032876,6]
[385847206,1758059519595,-814.45,0.00032876,6]
[385847207,1758059519604,-400.0,0.00032876,6]
[385847208,1758059519614,-581.21,0.00032876,6]
[385847209,1758059519623,-400.0,0.00032876,6]
[385847210,1758059519633,-533.37332044,0.00032876,6]
[385847211,1758059519643,-2151.75,0.00032876,6]
[385847212,1758059519652,-400.0,0.00032876,6]
[385847213,1758059519662,-400.0,0.00032876,6]
[385847214,1758059519671,-590.85,0.00032876,6]
[385847215,1758059519681,-400.0,0.00032876,6]
[385847216,1758059519690,-576.61,0.00032876,6]
[385847217,1758059519699,-400.0,0.00032876,6]
[385847218,1758059519708,-616.64,0.00032876,6]
[385847219,1758059519718,-400.0,0.00032876,6]
[385847220,1758059519726,-400.0,0.00032876,6]
[385847221,1758059519735,-426.57,0.00032876,6]
[385847222,1758059519745,-862.95,0.00032876,6]
[385847223,1758059519755,-2554.31,0.00032876,6]
[385847224,1758059519764,-695.75,0.00032876,6]
[385847225,1758059519774,-465.42,0.00032876,6]
[385847226,1758059519783,-528.3,0.00032876,6]
[385847227,1758059519792,-400.0,0.00032876,6]
[385847228,1758059519802,-400.0,0.00032876,6]
[385847229,1758059519812,-629.46,0.00032876,6]
[385847230,1758059519823,-400.0,0.00032876,6]
[385847231,1758059519832,-402.58,0.00032876,6]
[385847232,1758059519842,-760.02,0.00032876,6]
[385847233,1758059519851,-400.0,0.00032876,6]
[385847234,1758059519860,-400.0,0.00032876,6]
[385847235,1758059519869,-573.15,0.00032876,6]
[385847236,1758059519878,-400.0,0.00032876,6]
[385847237,1758059519889,-555.71,0.00032876,6]
[385847238,1758059519901,-400.0,0.00032876,6]
[385847239,1758059519910,-400.0,0.00032876,6]
[385847240,1758059519922,-400.0,0.00032876,6]
[385847241,1758059519933,-400.0,0.00032876,6]
[385847242,1758059519942,-524.53,0.00032876,6]
[385847243,1758059519951,-479.18,0.00032876,6]
[385847244,1758059519962,-447.53,0.00032876,6]
[385847245,1758059519971,-418.11,0.00032876,6]
[385847246,1758059519981,-423.89,0.00032876,6]
[385847247,1758059519990,-435.17,0.00032876,6]
[385847248,1758059519999,-450.0,0.00032876,6]
[385847249,1758059520009,-400.0,0.00032876,6]
[385847250,1758059520019,-400.0,0.00032876,6]
[385847251,1758059520028,-400.0,0.00032876,6]
[385847252,1758059520038,-778.74,0.00032876,6]
[385847253,1758059520048,-400.0,0.00032876,6]
[385847254,1758059520058,-704.61,0.00032876,6]
[385847255,1758059520068,-400.0,0.00032876,6]
[385847256,1758059520078,-400.0,0.00032876,6]
[385847257,1758059520087,-1172.18,0.00032876,6]
[385847258,1758059520097,-5286.95,0.00032876,6]
[385847259,1758059520107,-400.0,0.00032876,6]
[385847260,1758059520117,-400.0,0.00032876,6]
[385847261,1758059520127,-400.0,0.00032876,6]
[385847262,1758059520136,-542.4,0.00032876,6]
[385847263,1758059520146,-400.0,0.00032876,6]
[385847264,1758059520156,-400.0,0.00032876,6]
[385847265,1758059520165,-400.0,0.00032876,6]
[385847266,1758059520175,-435.09,0.00032876,6]
[385847267,1758059520185,-527.52,0.00032876,6]
[385847268,1758059520195,-551.22,0.00032876,6]
[385847269,1758059520204,-400.0,0.00032876,6]
[385847270,1758059520214,-400.0,0.00032876,6]
[385847271,1758059520225,-400.0,0.00032876,6]
[385847272,1758059520234,-400.0,0.00032876,6]
[385847273,1758059520243,-483.09,0.00032876,6]
[385847274,1758059520253,-400.0,0.00032876,6]
[385847275,1758059520262,-777.85,0.00032876,6]
[385847276,1758059520272,-400.0,0.00032876,6]
[385847277,1758059520281,-445.13,0.00032876,6]
[385847278,1758059520290,-510.44,0.00032876,6]
[385847279,1758059520299,-173.544193,0.00032876,6]
[385847280,1758059520309,-650.71,0.00032876,6]
[385847281,1758059520318,-400.0,0.00032876,6]
[385847282,1758059520329,-632.37,0.00032876,6]
[385847283,1758059520338,-400.0,0.00032876,6]
[385847284,1758059520347,-414.96,0.00032876,6]
[385847285,1758059520356,-400.0,0.00032876,6]
[385847286,1758059520365,-400.0,0.00032876,6]
[385847287,1758059520375,-400.0,0.00032876,6]
[385847288,1758059520384,-763.55,0.00032876,6]
[385847289,1758059520394,-400.0,0.00032876,6]
[385847290,1758059520406,-701.89,0.00032876,6]
[385847291,1758059520416,-400.0,0.00032876,6]
[385847292,1758059520425,-620.92,0.00032876,6]
[385847293,1758059520434,-400.0,0.00032876,6]
[385847294,1758059520446,-796.09,0.00032876,6]
[385847295,1758059520455,-400.0,0.00032876,6]
[385847296,1758059520465,-400.0,0.00032876,6]
[385847297,1758059520477,-400.0,0.00032876,6]
[385847298,1758059520487,-400.0,0.00032876,6]
[385847299,1758059520497,-400.0,0.00032876,6]
[385847300,1758059520506,-400.0,0.00032876,6]
[385847301,1758059520516,-400.0,0.00032876,6]
[385847302,1758059520525,-400.0,0.00032876,6]
[385847303,1758059520535,-400.0,0.00032876,6]
[385847304,1758059520544,-400.0,0.00032876,6]
[385847305,1758059520555,-745.62,0.00032876,6]
[385847306,1758059520564,-169.52860782,0.00032876,6]
[385847307,1758059520574,-629.24,0.00032876,6]
[385847308,1758059520583,-400.0,0.00032876,6]
[385847309,1758059520592,-447.35,0.00032876,6]
[385847310,1758059520601,-400.0,0.00032876,6]
[385847311,1758059520611,-508.76,0.00032876,6]
[385847312,1758059520620,-400.0,0.00032876,6]
[385847313,1758059520630,-936.1,0.00032876,6]
[385847314,1758059520639,-400.0,0.00032876,6]
[385847315,1758059520648,-400.0,0.00032876,6]
[385847316,1758059520657,-347.91813884,0.00032876,6]
[385847317,1758059520666,-400.0,0.00032876,6]
[385847318,1758059520675,-400.0,0.00032876,6]
[385847319,1758059520684,-489.8554941,0.00032876,6]
[385847320,1758059520693,-400.0,0.00032876,6]
[385847321,1758059520703,-1215.29,0.00032876,6]
[385847322,1758059520712,-400.0,0.00032876,6]
[385847323,1758059520721,-400.0,0.00032876,6]
[385847324,1758059520730,-470.35,0.00032876,6]
[385847325,1758059520819,-400.0,0.00032876,6]
[385847326,1758059520829,-400.0,0.00032876,6]
[385847327,1758059520839,-400.0,0.00032876,6]
[385847328,1758059520850,-722.71,0.00032876,6]
[385847329,1758059520859,-656.3,0.00032876,6]
[385847330,1758059520868,-400.0,0.00032876,6]
[385847331,1758059520880,-1790.44,0.00032876,6]
[385847332,1758059520891,-400.0,0.00032876,6]
[385847333,1758059520902,-400.0,0.00032876,6]
[385847334,1758059520911,-400.0,0.00032876,6]
[385847335,1758059520920,-1382.16,0.00032876,6]
[385847336,1758059520929,-400.0,0.00032876,6]
[385847337,1758059520938,-429.26,0.00032876,6]
[385847338,1758059520947,-1005.55,0.00032876,6]
[385847339,1758059520956,-400.0,0.00032876,6]
[385847340,1758059520966,-255.32564914,0.00032876,6]
[385847341,1758059520975,-400.0,0.00032876,6]
[385847342,1758059520985,-400.0,0.00032876,6]